[Event "Leca Open 2022"]
[Site "Leca da Palmeira"]
[Date "2022.08.02"]
[Round "4.6"]
[White "Martins, Bruno Andre Leite"]
[Black "Perez Candelario, Manuel"]
[Result "1/2-1/2"]
[ECO "B42"]
[WhiteElo "2331"]
[BlackElo "2578"]
[Annotator "TA"]
[PlyCount "59"]
[EventDate "2022.08.02"]
[EventType "swiss"]
[EventCountry "POR"]
[SourceTitle "playchess.com"]
[Source "ChessBase"]
[SourceQuality "1"]
[TimeControl "5400+30"]

{[%evp 18,59,63,36,54,20,45,13,71,50,81,80,116,120,158,119,146,120,109,119,183,193,179,179,206,182,175,193,168,118,135,109,125,108,119,118,352,98,135,0,332,0,107,0]} 1. e4 c5 2. Nf3 e6 3. d4 cxd4 4. Nxd4 a6 5. Bd3 Nf6 6. O-O d6 7. c4 Nbd7 8. Nc3 Be7 9. Be3 O-O 10. f4 Re8 {B42: Sicilian: Kan Variation: 5 Bd3.} 11. a3 Bf8 {[#]} (11... e5 {feels hotter.} 12. Nf5 Bf8 13. Bc2 exf4 14. Bxf4 Ne5) 12. b4 $146 {[%cal Bb2b4,Bb4c5][%mdl 32]} ({Predecessor:} 12. Kh1 g6 13. b4 Bg7 14. Rc1 Qc7 15. Nb3 b6 16. Qe2 Bb7 17. Bd2 Rac8 18. a4 {1-0 (70) Huebner,R (2620)-Sunye Neto,J (2475) Wijk aan Zee 1982}) 12... g6 (12... e5 $11) 13. Rc1 Bg7 14. Nb3 h5 15. Be2 {Inhibits Ng4.} Qe7 16. c5 {Prevents b6.} dxc5 17. bxc5 Rd8 {[%cal Of6g4]} 18. Qc2 Ng4 (18... Nb8 $16 {was necessary.}) 19. Bxg4 $18 hxg4 20. e5 {Against Nf6} Nf8 21. Ne4 Bd7 22. Na5 {[%cal Bb3a5,Ba5c4,Bc4d6][%mdl 32]} Bb5 23. Rfd1 {Inhibits Bd3.} (23. Nc4 $18) 23... Qc7 $16 24. Nc4 Rxd1+ 25. Rxd1 Nd7 26. Ncd6 {[%cal Od6f7] Nxf7! is the strong threat. 0x0.00144c127915dp-1022s more active pieces.} Nb6 $2 (26... Qa5 $16) 27. Nc3 $2 {Pair of Knights!} (27. Ng5 $18 Nd5 28. Ndxf7 $1) 27... Nd7 28. Nce4 $2 (28. Rc1 $16) 28... Nb6 $1 $18 29. Nc3 $2 (29. Ng5 $18 {and the rest is easy.} Nd5 {[#]} 30. Ndxf7 $1) 29... Nd7 $1 $16 30. Nce4 {Weighted Error Value: White=0.54/Black=0.26 (precise)} ({White should play} 30. Rc1 $16) 1/2-1/2

[Event "Leca Open 2022"]
[Site "Leca da Palmeira"]
[Date "2022.08.02"]
[Round "4.7"]
[White "Martinez Duany, Lelys Stanley"]
[Black "Padeiro, Jose"]
[Result "1-0"]
[ECO "A06"]
[WhiteElo "2497"]
[BlackElo "2216"]
[Annotator "RC"]
[PlyCount "87"]
[EventDate "2022.08.02"]
[EventType "swiss"]
[EventCountry "POR"]
[SourceTitle "playchess.com"]
[Source "ChessBase"]
[SourceQuality "1"]
[TimeControl "5400+30"]

1. Nf3 d5 2. c4 c6 3. Qc2 Nf6 4. d4 e6 5. g3 Be7 6. Bg2 O-O 7. O-O b6 8. Bg5 Bb7 9. Bxf6 Bxf6 10. Rd1 Na6 11. Nc3 Rc8 12. Rac1 Rc7 13. Qa4 Qa8 14. cxd5 exd5 15. b4 Re7 16. b5 Nc7 17. bxc6 Bxc6 18. Qb3 b5 19. e3 a5 20. Ne2 Ne6 21. Nf4 Nxf4 22. gxf4 a4 23. Qb4 Re6 24. f5 Be7 25. Qb1 Rh6 26. Ne5 Be8 27. Qc2 b4 28. Qc8 Qxc8 29. Rxc8 b3 30. axb3 axb3 31. Bxd5 Rb6 32. Rb1 b2 33. Rxe8 Rxe8 34. Bxf7+ Kf8 35. Bxe8 Kxe8 36. Kf1 Bf6 37. Nd3 Rb5 38. Rxb2 Rxf5 39. f4 Ra5 40. Ke2 g5 41. fxg5 Rxg5 42. Kf3 h5 43. Rb8+ Kf7 44. Rb7+ 1-0

[Event "Leca Open 2022"]
[Site "Leca da Palmeira"]
[Date "2022.08.02"]
[Round "4.8"]
[White "Grieve, Harry"]
[Black "Verma, Aditya"]
[Result "1/2-1/2"]
[ECO "B76"]
[WhiteElo "2390"]
[BlackElo "2114"]
[Annotator "RC"]
[PlyCount "81"]
[EventDate "2022.08.02"]
[EventType "swiss"]
[EventCountry "POR"]
[SourceTitle "playchess.com"]
[Source "ChessBase"]
[SourceQuality "1"]
[TimeControl "5400+30"]

1. e4 c5 2. Nf3 d6 3. d4 cxd4 4. Nxd4 Nf6 5. Nc3 g6 6. Be3 Bg7 7. f3 Nc6 8. Qd2 O-O 9. O-O-O d5 10. Qe1 e5 11. Nxc6 bxc6 12. exd5 Nxd5 13. Bc4 Be6 14. Ne4 Qc7 15. Bc5 Rfd8 16. Qh4 h6 17. g4 Nf4 18. Bxe6 Nxe6 19. Be3 Nf4 20. Qf2 Qa5 21. Kb1 Rd5 22. c4 Rdd8 23. Nc5 Qc7 24. Qc2 Qe7 25. Rxd8+ Rxd8 26. Rd1 Rxd1+ 27. Qxd1 Qh4 28. Qd2 Qh3 29. Bxf4 exf4 30. Qf2 f5 31. gxf5 Qxf5+ 32. Ne4 Qe5 33. Qe2 Kh7 34. a3 Qd4 35. Nc3 Qc5 36. Kc2 Qd4 37. Kc1 Qc5 38. Kd2 Qg1 39. Kc2 Qc5 40. Kb3 Qb6+ 41. Kc2 1/2-1/2

[Event "Leca Open 2022"]
[Site "Leca da Palmeira"]
[Date "2022.08.02"]
[Round "4.9"]
[White "Prieto Martin, Alfonso"]
[Black "Pintor, Simao Maciel Abranch"]
[Result "1-0"]
[ECO "B34"]
[WhiteElo "2264"]
[BlackElo "2062"]
[Annotator "RC"]
[PlyCount "101"]
[EventDate "2022.08.02"]
[EventType "swiss"]
[EventCountry "POR"]
[SourceTitle "playchess.com"]
[Source "ChessBase"]
[SourceQuality "1"]
[TimeControl "5400+30"]

1. e4 {[%emt 0:00:04]} c5 {[%emt 0:00:06]} 2. Nf3 {[%emt 0:00:05]} g6 {[%emt 0:00:04]} 3. d4 {[%emt 0:00:08]} cxd4 4. Nxd4 {[%emt 0:00:04]} Nc6 {[%emt 0:00:16]} 5. Nc3 {[%emt 0:00:18]} Bg7 {[%emt 0:00:06]} 6. Be3 {[%emt 0:00:04]} Nf6 {[%emt 0:00:05]} 7. f3 {[%emt 0:00:03]} O-O {[%emt 0:00:11]} 8. g4 {[%emt 0:00:03]} Qb6 {[%emt 0:18:22]} 9. Rb1 {[%emt 0:00:47]} Nxg4 {[%emt 0:05:20]} 10. fxg4 {[%emt 0:00:05]} Bxd4 {[%emt 0:00:31]} 11. Nd5 {[%emt 0:00:05]} Qc5 {[%emt 0:08:23]} 12. b4 {[%emt 0:01:54]} Nxb4 {[%emt 0:01:22]} 13. Bxd4 {[%emt 0:01:16]} Nxc2+ {[%emt 0:00:11]} 14. Qxc2 {[%emt 0:00:09]} Qxd4 {[%emt 0:00:20]} 15. Nxe7+ {[%emt 0:02:37]} Kg7 {[%emt 0:01:11]} 16. Qd3 {[%emt 0:04:15]} Qe5 {[%emt 0:06:43]} 17. Nd5 {[%emt 0:01:22]} d6 {[%emt 0:02:27]} 18. Be2 {[%emt 0:03:08]} Re8 {[%emt 0:13:57]} 19. O-O {[%emt 0:00:52]} Qxe4 {[%emt 0:03:49]} 20. Nc7 {[%emt 0:00:42]} Qxe2 {[%emt 0:03:18]} 21. Qxe2 {[%emt 0:00:10]} Rxe2 {[%emt 0:00:01]} 22. Nxa8 {[%emt 0:00:11]} Rxa2 {[%emt 0:00:28]} 23. Rf2 {[%emt 0:01:14]} Ra4 {[%emt 0:01:54]} 24. h3 {[%emt 0:00:55]} Ra3 {[%emt 0:02:38]} 25. Kh2 {[%emt 0:11:31]} h5 {[%emt 0:00:28]} 26. Rb4 {[%emt 0:00:40]} Rc3 {[%emt 0:03:00]} 27. Rd2 {[%emt 0:03:08]} b6 {[%emt 0:02:22]} 28. Ra4 {[%emt 0:04:22]} b5 {[%emt 0:11:59]} 29. Rxa7 {[%emt 0:01:39]} hxg4 {[%emt 0:00:04]} 30. hxg4 {[%emt 0:00:16]} Bxg4 {[%emt 0:00:08]} 31. Nc7 {[%emt 0:00:37]} Rh3+ {[%emt 0:06:39]} 32. Kg2 {[%emt 0:00:28]} Rb3 {[%emt 0:00:21]} 33. Ne8+ {[%emt 0:03:25]} Kh6 {[%emt 0:01:06]} 34. Nxd6 {[%emt 0:01:35]} f5 {[%emt 0:02:09]} 35. Raa2 {[%emt 0:01:26]} f4 {[%emt 0:01:39]} 36. Rab2 {[%emt 0:00:14]} Rg3+ {[%emt 0:00:09]} 37. Kf1 {[%emt 0:02:21]} g5 {[%emt 0:06:00]} 38. Rxb5 {[%emt 0:10:33]} Bh3+ {[%emt 0:00:27]} 39. Ke2 {[%emt 0:07:21]} Kh5 {[%emt 0:00:58]} 40. Rd4 {[%emt 0:10:48]} Rg2+ {[%emt 0:00:46]} 41. Kf3 {[%emt 0:02:47]} Rg3+ {[%emt 0:00:27]} 42. Kf2 {[%emt 0:00:40]} Rg2+ {[%emt 0:00:05]} 43. Kf3 {[%emt 0:01:55]} Rg3+ {[%emt 0:00:01]} 44. Ke2 {[%emt 0:00:53]} Rg2+ {[%emt 0:00:58]} 45. Kd3 {[%emt 0:02:31]} Rg3+ {[%emt 0:00:01]} 46. Kc2 {[%emt 0:00:28]} f3 {[%emt 0:01:23]} 47. Ne4 {[%emt 0:00:24]} Rg1 {[%emt 0:00:35]} 48. Rdd5 {[%emt 0:01:05]} Rg2+ {[%emt 0:00:28]} 49. Rd2 {[%emt 0:00:16]} Bd7 {[%emt 0:00:31]} 50. Rxg2 {[%emt 0:02:56]} Bxb5 {[%emt 0:00:25]} 51. Rxg5+ {[%emt 0:00:08]} 1-0

[Event "Leca Open 2022"]
[Site "Leca da Palmeira"]
[Date "2022.08.02"]
[Round "4.10"]
[White "Garcia Dorado, Alberto"]
[Black "Rego, Pedro Filipe"]
[Result "1/2-1/2"]
[ECO "D35"]
[WhiteElo "2206"]
[BlackElo "2251"]
[Annotator "RC"]
[PlyCount "27"]
[EventDate "2022.08.02"]
[EventType "swiss"]
[EventCountry "POR"]
[SourceTitle "playchess.com"]
[Source "ChessBase"]
[SourceQuality "1"]
[TimeControl "5400+30"]

1. d4 {[%emt 0:01:23]} Nf6 {[%emt 0:02:55]} 2. c4 {[%emt 0:01:09]} e6 {[%emt 0:00:05]} 3. Nc3 {[%emt 0:00:09]} d5 {[%emt 0:00:12]} 4. cxd5 {[%emt 0:00:16]} exd5 {[%emt 0:00:07]} 5. Bg5 {[%emt 0:00:08]} c6 {[%emt 0:00:04]} 6. e3 {[%emt 0:00:48]} h6 {[%emt 0:00:29]} 7. Bh4 {[%emt 0:00:31]} Bf5 {[%emt 0:01:46]} 8. Bd3 {[%emt 0:21:59]} Bxd3 {[%emt 0:01:25]} 9. Qxd3 {[%emt 0:00:15]} Nbd7 {[%emt 0:06:08]} 10. Nf3 {[%emt 0:05:39]} Bd6 {[%emt 0:01:12]} 11. Bg3 {[%emt 0:00:39]} Bxg3 {[%emt 0:00:57]} 12. hxg3 {[%emt 0:00:12]} Qe7 {[%emt 0:00:35]} 13. O-O {[%emt 0:04:27]} O-O {[%emt 0:05:39]} 14. Rab1 {[%emt 0:03:04]} 1/2-1/2

[Event "Leca Open 2022"]
[Site "Leca da Palmeira"]
[Date "2022.08.02"]
[Round "4.11"]
[White "Pinho, Tiago Filipe"]
[Black "Panesar Vedant"]
[Result "0-1"]
[ECO "C45"]
[WhiteElo "1972"]
[BlackElo "2318"]
[Annotator "RC"]
[PlyCount "116"]
[EventDate "2022.08.02"]
[EventType "swiss"]
[EventCountry "POR"]
[SourceTitle "playchess.com"]
[Source "ChessBase"]
[SourceQuality "1"]
[TimeControl "5400+30"]

1. e4 e5 2. Nf3 Nc6 3. d4 exd4 4. Nxd4 Nf6 5. Nxc6 bxc6 6. e5 Qe7 7. Qe2 Nd5 8. h4 Qe6 9. g3 Nb4 10. c4 Qg6 11. Na3 Bc5 12. h5 Qf5 13. g4 Qe6 14. f4 d6 15. Be3 Bxe3 16. Qxe3 O-O 17. O-O-O Nxa2+ 18. Kb1 Nb4 19. Bh3 dxe5 20. g5 Qe7 21. Qxe5 Qxe5 22. fxe5 Bxh3 23. Rxh3 Rad8 24. Kc1 Rxd1+ 25. Kxd1 Rd8+ 26. Ke2 Kf8 27. Rb3 a5 28. g6 hxg6 29. hxg6 fxg6 30. Rg3 Kf7 31. Rf3+ Ke6 32. Rg3 Kf5 33. Nb1 Re8 34. Rf3+ Kg4 35. Re3 Nc2 36. Rd3 Rxe5+ 37. Kf2 Re4 38. Rd7 Rxc4 39. Rxg7 g5 40. Rxc7 Nb4 41. Nd2 Rc2 42. Ke1 Rxb2 43. Nc4 Ra2 44. Ne5+ Kf4 45. Nxc6 Nxc6 46. Rxc6 Ra4 47. Kf2 Re4 48. Rc3 Kf5 49. Kf3 g4+ 50. Kg3 a4 51. Rc5+ Ke6 52. Rc3 Kd5 53. Rc8 Rc4 54. Rb8 Kc5 55. Rb7 a3 56. Rb8 Ra4 57. Rb1 a2 58. Ra1 Kc4 0-1

[Event "Leca Open 2022"]
[Site "Leca da Palmeira"]
[Date "2022.08.02"]
[Round "4.12"]
[White "Goncalves, Samuel Jesus P"]
[Black "Touzane, Olivier"]
[Result "1/2-1/2"]
[ECO "D71"]
[WhiteElo "1957"]
[BlackElo "2266"]
[Annotator "RC"]
[PlyCount "188"]
[EventDate "2022.08.02"]
[EventType "swiss"]
[EventCountry "POR"]
[SourceTitle "playchess.com"]
[Source "ChessBase"]
[SourceQuality "1"]
[TimeControl "5400+30"]

1. d4 {[%emt 0:00:02]} Nf6 {[%emt 0:00:36]} 2. c4 {[%emt 0:00:10]} g6 {[%emt 0:00:13]} 3. g3 {[%emt 0:00:07]} c5 {[%emt 0:00:26]} 4. d5 {[%emt 0:00:08]} b5 {[%emt 0:00:15]} 5. cxb5 {[%emt 0:00:06]} a6 {[%emt 0:00:19]} 6. bxa6 {[%emt 0:00:06]} Bg7 {[%emt 0:00:59]} 7. Bg2 {[%emt 0:00:06]} d6 {[%emt 0:00:58]} 8. Nc3 {[%emt 0:00:07]} Bxa6 {[%emt 0:00:11]} 9. Nf3 {[%emt 0:00:10]} Nbd7 {[%emt 0:00:10]} 10. Rb1 {[%emt 0:00:12]} O-O {[%emt 0:00:43]} 11. O-O {[%emt 0:00:08]} Nb6 {[%emt 0:00:13]} 12. b3 {[%emt 0:00:06]} Bb7 {[%emt 0:04:21]} 13. e4 {[%emt 0:10:48]} e6 {[%emt 0:04:18]} 14. dxe6 {[%emt 0:02:06]} fxe6 {[%emt 0:05:01]} 15. Ng5 {[%emt 0:01:36]} Qd7 {[%emt 0:01:25]} 16. Bb2 {[%emt 0:06:33]} h6 {[%emt 0:04:50]} 17. e5 {[%emt 0:08:12]} Nfd5 {[%emt 0:05:32]} 18. Nxd5 {[%emt 0:00:54]} Bxd5 {[%emt 0:00:45]} 19. Ne4 {[%emt 0:01:22]} dxe5 {[%emt 0:01:10]} 20. Qg4 {[%emt 0:06:29]} Qf7 {[%emt 0:03:50]} 21. a3 {[%emt 0:04:20]} Ra5 {[%emt 0:03:51]} 22. Rbc1 {[%emt 0:03:50]} h5 {[%emt 0:05:21]} 23. Qd1 {[%emt 0:03:13]} Nd7 {[%emt 0:05:23]} 24. Qe1 {[%emt 0:00:43]} Rfa8 {[%emt 0:01:09]} 25. Qe3 {[%emt 0:01:57]} Qe7 {[%emt 0:00:55]} 26. Rfd1 {[%emt 0:00:44]} Rb8 {[%emt 0:00:29]} 27. Qd2 {[%emt 0:01:58]} Ra7 {[%emt 0:01:25]} 28. Nxc5 {[%emt 0:01:54]} Nxc5 {[%emt 0:05:46]} 29. Bxd5 {[%emt 0:00:07]} Nxb3 {[%emt 0:04:16]} 30. Bxb3 {[%emt 0:01:07]} Rxb3 {[%emt 0:00:05]} 31. Rc3 {[%emt 0:01:34]} Rb5 {[%emt 0:01:27]} 32. Re3 {[%emt 0:03:47]} Kh7 {[%emt 0:01:11]} 33. Qe2 {[%emt 0:01:00]} Qc5 {[%emt 0:08:46]} 34. Re1 {[%emt 0:08:10]} Raa5 {[%emt 0:00:44]} 35. Rc3 {[%emt 0:03:38]} Qb6 {[%emt 0:01:14]} 36. Bc1 {[%emt 0:01:11]} Rb1 {[%emt 0:00:36]} 37. Qc2 {[%emt 0:01:19]} Rab5 {[%emt 0:03:20]} 38. Rf1 {[%emt 0:02:43]} Qd4 {[%emt 0:02:38]} 39. Rc6 {[%emt 0:01:28]} Qd5 {[%emt 0:04:32]} 40. Rd1 {[%emt 0:02:06]} R5b2 {[%emt 0:07:00]} 41. Qa4 {[%emt 0:04:38]} Qf3 {[%emt 0:01:56]} 42. Rf1 {[%emt 0:00:09]} Re2 {[%emt 0:05:10]} 43. Rc7 {[%emt 0:00:34]} Rb7 {[%emt 0:02:38]} 44. Rc8 {[%emt 0:01:10]} Rf7 {[%emt 0:01:17]} 45. Qc6 {[%emt 0:03:52]} e4 {[%emt 0:00:30]} 46. Qb6 {[%emt 0:02:44]} Qf5 {[%emt 0:03:54]} 47. Be3 {[%emt 0:02:39]} g5 {[%emt 0:00:07]} 48. Qc5 {[%emt 0:01:02]} e5 {[%emt 0:01:27]} 49. Qc4 {[%emt 0:01:12]} Qf3 {[%emt 0:00:33]} 50. Rc7 {[%emt 0:00:25]} Rxc7 {[%emt 0:00:55]} 51. Qxc7 {[%emt 0:00:06]} h4 {[%emt 0:00:08]} 52. Qd7 {[%emt 0:01:49]} hxg3 {[%emt 0:00:36]} 53. Qh3+ {[%emt 0:00:47]} Kg6 {[%emt 0:00:04]} 54. Qxg3 {[%emt 0:00:31]} Qxg3+ {[%emt 0:00:26]} 55. hxg3 {[%emt 0:00:05]} Ra2 {[%emt 0:00:09]} 56. Bc5 {[%emt 0:00:04]} g4 {[%emt 0:00:14]} 57. Rd1 {[%emt 0:01:41]} Kf5 {[%emt 0:00:19]} 58. Re1 {[%emt 0:03:02]} Bh6 {[%emt 0:00:14]} 59. Kf1 {[%emt 0:00:42]} Bd2 {[%emt 0:00:41]} 60. Re2 {[%emt 0:00:41]} Ra1+ {[%emt 0:00:15]} 61. Kg2 {[%emt 0:00:08]} Bc3 {[%emt 0:00:37]} 62. Bf8 {[%emt 0:02:22]} Bd4 {[%emt 0:00:17]} 63. Bb4 {[%emt 0:00:08]} Ba7 {[%emt 0:00:14]} 64. Bf8 {[%emt 0:00:44]} e3 {[%emt 0:00:49]} 65. fxe3 {[%emt 0:00:57]} Ke4 {[%emt 0:00:10]} 66. Bd6 {[%emt 0:01:47]} Rd1 {[%emt 0:00:15]} 67. Bc7 {[%emt 0:00:44]} Rd7 {[%emt 0:00:56]} 68. Ba5 {[%emt 0:00:14]} Rd1 {[%emt 0:00:37]} 69. Bc7 {[%emt 0:00:11]} Rd3 {[%emt 0:00:23]} 70. a4 {[%emt 0:00:24]} Rc3 {[%emt 0:00:23]} 71. Bd8 {[%emt 0:00:28]} Ra3 {[%emt 0:00:26]} 72. a5 {[%emt 0:00:17]} Kd3 {[%emt 0:00:05]} 73. Kf2 {[%emt 0:01:23]} e4 {[%emt 0:00:25]} 74. Bc7 {[%emt 0:01:33]} Ra1 {[%emt 0:00:21]} 75. Bf4 {[%emt 0:00:42]} Rxa5 {[%emt 0:00:48]} 76. Rb2 {[%emt 0:00:01]} Kc3 {[%emt 0:00:09]} 77. Re2 {[%emt 0:00:40]} Ra3 {[%emt 0:00:33]} 78. Bd6 {[%emt 0:00:39]} Ra6 {[%emt 0:00:32]} 79. Bf4 {[%emt 0:00:21]} Ra5 {[%emt 0:00:15]} 80. Re1 {[%emt 0:00:38]} Kd2 {[%emt 0:00:38]} 81. Re2+ {[%emt 0:00:06]} Kd3 {[%emt 0:00:11]} 82. Rb2 {[%emt 0:00:20]} Bc5 {[%emt 0:00:49]} 83. Re2 {[%emt 0:01:18]} Bb4 {[%emt 0:00:21]} 84. Rb2 {[%emt 0:00:40]} Bc3 {[%emt 0:00:18]} 85. Rb7 {[%emt 0:00:54]} Ra2+ {[%emt 0:00:13]} 86. Kf1 {[%emt 0:00:09]} Ra1+ {[%emt 0:00:23]} 87. Kf2 {[%emt 0:00:09]} Be1+ {[%emt 0:01:50]} 88. Kg2 {[%emt 0:00:17]} Bc3 {[%emt 0:01:06]} 89. Kf2 {[%emt 0:00:12]} Ra2+ {[%emt 0:00:29]} 90. Kf1 {[%emt 0:00:09]} Rh2 {[%emt 0:00:40]} 91. Rd7+ {[%emt 0:00:09]} Kc2 {[%emt 0:00:19]} 92. Re7 {[%emt 0:00:10]} Kd3 {[%emt 0:00:34]} 93. Rd7+ {[%emt 0:00:03]} Kc2 {[%emt 0:00:40]} 94. Re7 {[%emt 0:00:06]} Kd3 {[%emt 0:00:52]} 1/2-1/2

[Event "Leca Open 2022"]
[Site "Leca da Palmeira"]
[Date "2022.08.02"]
[Round "4.13"]
[White "Guia, Artur Solovyov Eloy"]
[Black "Balaji, Aaravamudhan"]
[Result "0-1"]
[ECO "A45"]
[WhiteElo "1916"]
[BlackElo "2228"]
[Annotator "RC"]
[PlyCount "112"]
[EventDate "2022.08.02"]
[EventType "swiss"]
[EventCountry "POR"]
[SourceTitle "playchess.com"]
[Source "ChessBase"]
[SourceQuality "1"]
[TimeControl "5400+30"]

1. d4 {[%emt 0:00:03]} Nf6 {[%emt 0:00:22]} 2. Bg5 {[%emt 0:00:14]} g6 {[%emt 0:00:07]} 3. Bxf6 {[%emt 0:00:04]} exf6 {[%emt 0:00:06]} 4. c4 {[%emt 0:00:06]} d5 {[%emt 0:00:27]} 5. cxd5 {[%emt 0:00:59]} Qxd5 {[%emt 0:00:10]} 6. Nc3 {[%emt 0:00:46]} Qd8 {[%emt 0:00:14]} 7. Nf3 {[%emt 0:00:46]} Bd6 {[%emt 0:00:23]} 8. e3 {[%emt 0:01:35]} f5 {[%emt 0:00:41]} 9. Bc4 {[%emt 0:00:36]} Nd7 {[%emt 0:00:13]} 10. O-O {[%emt 0:01:44]} O-O {[%emt 0:00:57]} 11. Nb5 {[%emt 0:01:27]} Be7 {[%emt 0:05:41]} 12. Rc1 {[%emt 0:02:27]} c6 {[%emt 0:01:34]} 13. Nc3 {[%emt 0:00:05]} Nf6 {[%emt 0:04:15]} 14. Qd3 {[%emt 0:01:47]} Qa5 {[%emt 0:09:53]} 15. Rfd1 {[%emt 0:05:07]} b5 {[%emt 0:06:59]} 16. Bb3 {[%emt 0:00:05]} Ba6 {[%emt 0:00:09]} 17. Qd2 {[%emt 0:04:56]} b4 {[%emt 0:06:01]} 18. Na4 {[%emt 0:03:46]} Ne4 {[%emt 0:02:34]} 19. Qe1 {[%emt 0:00:46]} Bd6 {[%emt 0:10:23]} 20. Nd2 {[%emt 0:02:29]} Qc7 {[%emt 0:00:32]} 21. Nxe4 {[%emt 0:03:04]} fxe4 {[%emt 0:00:19]} 22. g3 {[%emt 0:00:56]} Bb5 {[%emt 0:02:36]} 23. Nc5 {[%emt 0:01:06]} Rae8 {[%emt 0:00:32]} 24. Qxb4 {[%emt 0:02:47]} Be2 {[%emt 0:00:53]} 25. Re1 {[%emt 0:02:14]} Rb8 {[%emt 0:01:20]} 26. Qc3 {[%emt 0:02:31]} Bf3 {[%emt 0:00:16]} 27. Bc4 {[%emt 0:03:53]} Qc8 {[%emt 0:01:20]} 28. Bf1 {[%emt 0:03:29]} h5 {[%emt 0:01:30]} 29. Qc2 {[%emt 0:03:55]} Qf5 {[%emt 0:09:11]} 30. Bg2 {[%emt 0:02:31]} Bxg2 {[%emt 0:00:49]} 31. Kxg2 {[%emt 0:00:02]} Bxc5 {[%emt 0:00:10]} 32. dxc5 {[%emt 0:04:33]} Qf3+ {[%emt 0:02:23]} 33. Kg1 {[%emt 0:00:24]} h4 {[%emt 0:00:01]} 34. gxh4 {[%emt 0:02:09]} Rfe8 {[%emt 0:05:09]} 35. Qe2 {[%emt 0:01:32]} Qh3 {[%emt 0:03:30]} 36. Kh1 {[%emt 0:03:10]} Re5 {[%emt 0:00:33]} 37. Rg1 {[%emt 0:02:00]} Qxh4 {[%emt 0:00:49]} 38. Rg2 {[%emt 0:02:35]} Rf5 {[%emt 0:04:49]} 39. b3 {[%emt 0:15:02]} Rd8 {[%emt 0:01:16]} 40. Rcg1 {[%emt 0:04:56]} Rdd5 {[%emt 0:02:05]} 41. Qb2 {[%emt 0:01:22]} Kh7 {[%emt 0:02:34]} 42. b4 {[%emt 0:05:23]} Rh5 {[%emt 0:02:35]} 43. Qe2 {[%emt 0:03:04]} Rdf5 {[%emt 0:02:22]} 44. Qg4 {[%emt 0:03:42]} Qe7 {[%emt 0:00:48]} 45. a3 {[%emt 0:01:01]} Rf3 {[%emt 0:03:42]} 46. Rd1 {[%emt 0:02:50]} Rfh3 {[%emt 0:01:23]} 47. Qf4 {[%emt 0:02:40]} Qe6 {[%emt 0:01:28]} 48. Rd6 {[%emt 0:01:02]} Qc4 {[%emt 0:00:56]} 49. Rd7 {[%emt 0:00:44]} Rf3 {[%emt 0:01:16]} 50. Qd6 {[%emt 0:00:31]} Rh6 {[%emt 0:01:31]} 51. Qd1 {[%emt 0:00:27]} a6 52. Rd8 {[%emt 0:00:19]} Rf6 {[%emt 0:02:26]} 53. Qa1 {[%emt 0:00:31]} g5 {[%emt 0:00:35]} 54. Rxg5 {[%emt 0:00:41]} Qe2 {[%emt 0:00:20]} 55. Qg1 {[%emt 0:00:26]} Rfg6 {[%emt 0:00:13]} 56. Qg4 Qxg4 {[%emt 0:00:30]} 0-1